[Event "FIDE WCCC Open-08 2024"]
[Site "Montesilvano"]
[Date "2024.11.23"]
[Round "8.4"]
[White "Demchenko, Timofei"]
[Black "Guo, Philipp Ziming"]
[Result "0-1"]
[ECO "B31"]
[WhiteElo "1969"]
[BlackElo "2139"]
[Annotator "RC"]
[PlyCount "132"]
[EventDate "2024.11.18"]
[EventType "swiss"]
[EventCountry "ITA"]
[SourceTitle "playchess.com"]
[Source "ChessBase"]
[SourceQuality "1"]
[TimeControl "5400+30"]

1. e4 {[%emt 1:31:00]} c5 {[%emt 0:00:06]} 2. Nf3 {[%emt 0:00:00]} Nc6 {[%emt 0:00:03]} 3. Bb5 {[%emt 0:00:00]} g6 {[%emt 0:00:07]} 4. O-O {[%emt 0:00:00]} Bg7 {[%emt 0:00:09]} 5. Re1 {[%emt 0:00:00]} Nf6 {[%emt 0:00:43]} 6. e5 {[%emt 0:00:00]} Nd5 {[%emt 0:00:11]} 7. Nc3 {[%emt 0:00:00]} Nc7 {[%emt 0:01:28]} 8. Bxc6 {[%emt 0:00:00]} dxc6 {[%emt 0:00:07]} 9. Ne4 {[%emt 0:00:00]} Ne6 {[%emt 0:00:47]} 10. b3 {[%emt 0:00:00]} O-O {[%emt 0:01:06]} 11. Bb2 {[%emt 0:00:00]} b6 {[%emt 0:01:48]} 12. h4 {[%emt 0:00:00]} Nd4 {[%emt 0:01:56]} 13. Nxd4 {[%emt 0:00:00]} cxd4 {[%emt 0:00:07]} 14. Ng3 {[%emt 0:00:00]} c5 {[%emt 0:02:33]} 15. h5 {[%emt 0:00:00]} Bb7 {[%emt 0:00:59]} 16. f4 {[%emt 0:00:00]} Qd5 {[%emt 0:01:24]} 17. Ne4 {[%emt 0:00:00]} f5 {[%emt 1:25:26]} 18. exf6 {[%emt 0:00:00]} exf6 {[%emt 0:00:00]} 19. c4 {[%emt 0:00:00]} Qc6 {[%emt 0:00:00]} 20. Qf3 {[%emt 0:00:00]} Rae8 {[%emt 0:00:00]} 21. d3 {[%emt 0:00:00]} f5 {[%emt 0:00:00]} 22. Ng5 {[%emt 0:00:00]} Qxf3 {[%emt 0:00:00]} 23. gxf3 {[%emt 0:00:00]} Bf6 {[%emt 0:00:00]} 24. hxg6 {[%emt 0:00:00]} hxg6 {[%emt 0:00:00]} 25. Kf2 {[%emt 0:00:00]} Re3 {[%emt 0:00:00]} 26. Kg3 {[%emt 0:00:00]} Rxd3 {[%emt 0:00:00]} 27. Rad1 {[%emt 0:00:53]} Rxd1 {[%emt 0:00:00]} 28. Rxd1 {[%emt 0:00:02]} Re8 {[%emt 0:00:00]} 29. Rd2 {[%emt 0:02:26]} Re3 {[%emt 0:00:00]} 30. Rf2 {[%emt 0:00:35]} Kg7 {[%emt 0:00:00]} 31. Ba1 {[%emt 0:03:08]} a6 {[%emt 0:00:00]} 32. Bb2 {[%emt 0:02:16]} b5 {[%emt 0:00:00]} 33. Bc1 {[%emt 0:00:48]} Re1 {[%emt 0:00:00]} 34. Bd2 {[%emt 0:00:17]} Re8 {[%emt 0:00:00]} 35. a4 {[%emt 0:01:12]} bxc4 {[%emt 0:00:00]} 36. bxc4 {[%emt 0:00:09]} Bc6 {[%emt 0:00:00]} 37. a5 {[%emt 0:00:09]} Ba4 {[%emt 0:00:00]} 38. Rh2 {[%emt 0:01:12]} d3 {[%emt 0:00:00]} 39. Rh7+ {[%emt 0:00:28]} Kg8 {[%emt 0:00:00]} 40. Rh6 {[%emt 0:00:37]} Bxg5 {[%emt 0:00:00]} 41. Rxg6+ {[%emt 0:00:16]} Kf7 {[%emt 0:00:00]} 42. Rxg5 {[%emt 0:00:10]} Bd7 {[%emt 0:00:00]} 43. Bc3 {[%emt 0:01:04]} Re2 {[%emt 0:00:00]} 44. Kh3 {[%emt 0:00:41]} Rc2 {[%emt 0:00:00]} 45. Rg7+ {[%emt 0:00:23]} Ke6 {[%emt 0:00:00]} 46. Rg6+ {[%emt 0:00:33]} Ke7 {[%emt 0:00:00]} 47. Rg7+ {[%emt 0:01:03]} Kd8 {[%emt 0:00:00]} 48. Rg8+ {[%emt 0:01:13]} Be8 {[%emt 0:00:00]} 49. Bf6+ {[%emt 0:00:30]} Kd7 {[%emt 0:00:00]} 50. Rg7+ {[%emt 0:00:47]} Ke6 {[%emt 0:00:00]} 51. Re7+ {[%emt 0:00:28]} Kxf6 {[%emt 0:00:00]} 52. Rxe8 {[%emt 0:00:07]} Rxc4 {[%emt 0:00:00]} 53. Rf8+ {[%emt 0:00:27]} Ke7 {[%emt 0:00:00]} 54. Rb8 {[%emt 0:00:50]} d2 {[%emt 0:00:00]} 55. Rb7+ {[%emt 0:00:02]} Kd6 {[%emt 0:00:00]} 56. Rb6+ {[%emt 0:00:05]} Kc7 {[%emt 0:00:00]} 57. Rb1 {[%emt 0:00:06]} Rd4 {[%emt 0:00:00]} 58. Rd1 {[%emt 0:00:10]} c4 {[%emt 0:00:00]} 59. Kh4 {[%emt 0:00:07]} c3 {[%emt 0:00:00]} 60. Kg5 {[%emt 0:00:07]} c2 {[%emt 0:00:00]} 61. Rxd2 {[%emt 0:00:11]} Rxd2 {[%emt 0:00:00]} 62. Kf6 {[%emt 0:00:08]} c1=Q {[%emt 0:00:00]} 63. Kf7 {[%emt 0:00:04]} Qc6 {[%emt 0:00:00]} 64. Ke7 {[%emt 0:00:12]} Rd7+ {[%emt 0:00:00]} 65. Ke8 {[%emt 0:00:07]} Qe6+ {[%emt 0:00:00]} 66. Kf8 {[%emt 0:00:07]} Qf7# {[%emt 0:00:00]} 0-1

[Event "FIDE WCCC Open-08 2024"]
[Site "Montesilvano"]
[Date "2024.11.23"]
[Round "8.5"]
[White "Pham, Han Nam"]
[Black "Kavish Palaniappan K"]
[Result "1-0"]
[ECO "E01"]
[WhiteElo "1912"]
[BlackElo "1589"]
[Annotator "RC"]
[PlyCount "115"]
[EventDate "2024.11.18"]
[EventType "swiss"]
[EventCountry "ITA"]
[SourceTitle "playchess.com"]
[Source "ChessBase"]
[SourceQuality "1"]
[TimeControl "5400+30"]

1. c4 {[%emt 0:00:09]} e6 {[%emt 0:00:23]} 2. Nc3 {[%emt 0:00:16]} d5 {[%emt 0:00:16]} 3. d4 {[%emt 0:00:25]} Nf6 {[%emt 0:00:11]} 4. g3 {[%emt 0:00:22]} Be7 {[%emt 0:01:58]} 5. Bg2 {[%emt 0:00:09]} O-O {[%emt 0:00:23]} 6. e3 {[%emt 0:00:24]} b6 {[%emt 0:01:15]} 7. cxd5 {[%emt 0:00:32]} exd5 {[%emt 0:00:45]} 8. Nge2 {[%emt 0:00:16]} Bb7 {[%emt 0:03:37]} 9. O-O {[%emt 0:00:39]} Nbd7 {[%emt 0:03:33]} 10. b3 {[%emt 0:01:35]} Re8 {[%emt 0:03:13]} 11. Bb2 {[%emt 0:01:27]} Nf8 {[%emt 0:01:43]} 12. Rc1 {[%emt 0:01:10]} Ne6 {[%emt 0:02:12]} 13. Qd2 {[%emt 0:02:41]} Bd6 {[%emt 0:07:47]} 14. Rc2 {[%emt 0:02:52]} Qd7 {[%emt 0:04:20]} 15. Rfc1 {[%emt 0:01:16]} Ng5 {[%emt 0:04:11]} 16. Qe1 {[%emt 0:07:12]} Qg4 {[%emt 0:09:33]} 17. Nb5 {[%emt 0:01:29]} Ba6 {[%emt 0:08:14]} 18. Nxd6 {[%emt 0:01:50]} cxd6 {[%emt 0:00:08]} 19. Nf4 {[%emt 0:01:38]} Re4 {[%emt 0:15:41]} 20. Qd1 {[%emt 0:02:01]} Qf5 {[%emt 0:11:02]} 21. h4 {[%emt 0:00:56]} Rxf4 {[%emt 0:07:53]} 22. hxg5 {[%emt 0:00:43]} Rxf2 {[%emt 0:02:13]} 23. Rxf2 {[%emt 0:00:33]} Qxg5 {[%emt 0:00:05]} 24. Qf3 {[%emt 0:00:52]} Re8 {[%emt 0:00:23]} 25. Qf4 {[%emt 0:00:25]} Qh5 {[%emt 0:00:40]} 26. Bf3 {[%emt 0:02:21]} Qg6 {[%emt 0:01:01]} 27. Ba3 {[%emt 0:00:48]} Bd3 {[%emt 0:02:21]} 28. Bxd6 {[%emt 0:00:27]} Be4 {[%emt 0:02:04]} 29. Be5 {[%emt 0:01:58]} Bxf3 {[%emt 0:00:43]} 30. Rxf3 {[%emt 0:01:42]} Nd7 {[%emt 0:02:05]} 31. Qf5 {[%emt 0:00:33]} Qxf5 {[%emt 0:01:15]} 32. Rxf5 {[%emt 0:00:12]} g6 {[%emt 0:00:17]} 33. Rf3 {[%emt 0:00:56]} Nxe5 {[%emt 0:00:20]} 34. dxe5 {[%emt 0:00:08]} Rxe5 {[%emt 0:00:05]} 35. Rc8+ {[%emt 0:00:19]} Kg7 {[%emt 0:00:09]} 36. Rc7 {[%emt 0:00:05]} Kh6 {[%emt 0:00:06]} 37. Rcxf7 {[%emt 0:00:39]} d4 {[%emt 0:00:10]} 38. exd4 {[%emt 0:00:12]} Re1+ {[%emt 0:00:14]} 39. Kg2 {[%emt 0:00:13]} Rd1 {[%emt 0:00:06]} 40. Rd7 {[%emt 0:00:38]} Rd2+ {[%emt 0:00:23]} 41. Kh3 {[%emt 0:00:10]} Rxa2 {[%emt 0:00:07]} 42. Kg4 {[%emt 0:00:14]} Re2 {[%emt 0:00:08]} 43. Rff7 {[%emt 0:00:19]} Re4+ {[%emt 0:00:07]} 44. Kf3 {[%emt 0:00:05]} Re1 {[%emt 0:00:16]} 45. Kf4 {[%emt 0:00:26]} g5+ {[%emt 0:00:17]} 46. Kf5 {[%emt 0:00:19]} Rf1+ {[%emt 0:00:05]} 47. Kg4 {[%emt 0:00:08]} Rxf7 {[%emt 0:00:06]} 48. Rxf7 {[%emt 0:00:07]} Kg6 {[%emt 0:00:05]} 49. Rf2 {[%emt 0:00:24]} h5+ {[%emt 0:00:56]} 50. Kh3 {[%emt 0:00:05]} a6 {[%emt 0:00:09]} 51. d5 {[%emt 0:00:06]} b5 {[%emt 0:00:05]} 52. d6 {[%emt 0:00:04]} a5 {[%emt 0:00:20]} 53. d7 {[%emt 0:00:07]} g4+ {[%emt 0:00:05]} 54. Kh4 {[%emt 0:00:07]} a4 {[%emt 0:00:05]} 55. d8=Q {[%emt 0:00:11]} axb3 {[%emt 0:00:51]} 56. Rf6+ {[%emt 0:00:12]} Kh7 {[%emt 0:00:33]} 57. Rf7+ {[%emt 0:00:26]} Kg6 {[%emt 0:00:33]} 58. Qf6# {[%emt 0:00:05]} 1-0

[Event "FIDE WCCC Open-08 2024"]
[Site "Montesilvano"]
[Date "2024.11.23"]
[Round "8.6"]
[White "Czachurski, Ignacy"]
[Black "Xu, Zhihan (Samuel)"]
[Result "0-1"]
[ECO "C45"]
[WhiteElo "1672"]
[BlackElo "1881"]
[Annotator "NA RC"]
[PlyCount "82"]
[EventDate "2024.11.18"]
[EventType "swiss"]
[EventCountry "ITA"]
[SourceTitle "playchess.com"]
[Source "ChessBase"]
[SourceQuality "1"]
[TimeControl "5400+30"]

1. e4 {[%emt 0:00:07]} e5 {[%emt 0:00:00]} 2. Nf3 {[%emt 0:00:17]} Nc6 {[%emt 1:31:30]} 3. d4 {[%emt 0:00:50]} exd4 {[%emt 0:00:00]} 4. Nxd4 {[%emt 0:00:11]} Bc5 {[%emt 0:00:00]} 5. Nb3 {[%emt 0:00:12]} Bb6 {[%emt 0:00:00]} 6. Nc3 {[%emt 0:00:19]} Qf6 {[%emt 0:00:00]} 7. Qe2 {[%emt 0:02:26]} Nge7 {[%emt 0:00:00]} 8. Be3 {[%emt 0:02:52]} d6 {[%emt 0:00:00]} 9. O-O-O {[%emt 0:02:14]} Be6 {[%emt 0:00:00]} 10. g3 {[%emt 0:04:08]} O-O-O {[%emt 0:00:00]} 11. Bg2 {[%emt 0:01:02]} Rhe8 {[%emt 0:00:00]} 12. Bxb6 {[%emt 0:03:50]} axb6 {[%emt 0:00:00]} 13. f4 {[%emt 0:07:20]} Qh6 {[%emt 0:00:00]} 14. Kb1 {[%emt 0:14:04]} f5 {[%emt 0:00:00]} 15. Nd4 {[%emt 0:08:19]} Nxd4 {[%emt 0:00:00]} 16. Rxd4 {[%emt 0:00:12]} Nc6 {[%emt 0:00:00]} 17. Rdd1 {[%emt 0:03:19]} fxe4 {[%emt 0:00:00]} 18. Qb5 {[%emt 0:05:37]} Bg4 {[%emt 0:00:00]} 19. Rde1 {[%emt 0:02:15]} Bf3 {[%emt 0:00:00]} 20. Bxf3 {[%emt 0:06:26]} exf3 {[%emt 0:00:00]} 21. h4 {[%emt 0:04:42]} Qg6 {[%emt 0:00:00]} 22. h5 {[%emt 0:15:10]} Qxg3 {[%emt 0:10:00]} 23. Qf5+ {[%emt 0:02:34]} Kb8 {[%emt 0:00:00]} 24. Reg1 {[%emt 0:02:51]} f2 {[%emt 0:01:00]} 25. Rc1 {[%emt 0:01:09]} Qg2 {[%emt 0:00:00]} 26. Rhd1 {[%emt 0:01:55]} Rf8 {[%emt 0:00:00]} 27. Qxh7 {[%emt 0:01:14]} Rxf4 {[%emt 0:00:00]} 28. Rf1 {[%emt 0:00:37]} Re8 {[%emt 0:00:00]} 29. Nb5 {[%emt 0:00:26]} Qxf1 {[%emt 0:00:00]} 30. a4 {[%emt 0:00:38]} Qxc1+ {[%emt 0:00:00]} 31. Ka2 {[%emt 0:00:11]} Rxa4+ {[%emt 0:00:00]} 32. Kb3 {[%emt 0:00:08]} Rb4+ {[%emt 0:00:00]} 33. Kc3 {[%emt 0:00:19]} Re3+ {[%emt 0:00:00]} 34. Qd3 {[%emt 0:00:17]} Rxd3+ {[%emt 0:00:00]} 35. Kxd3 {[%emt 0:00:13]} f1=B+ {[%emt 0:00:15]} 36. Kc3 {[%emt 0:00:12]} Qxb2+ {[%emt 0:00:15]} 37. Kd2 {[%emt 0:00:06]} Rxb5 {[%emt 0:00:13]} 38. h6 {[%emt 0:00:08]} Qd4+ {[%emt 0:00:06]} 39. Kc1 {[%emt 0:00:17]} Ra5 {[%emt 0:00:03]} 40. c4 {[%emt 0:00:13]} Ra2 {[%emt 0:00:06]} 41. hxg7 {[%emt 0:00:13]} Qa1# {[%emt 0:00:33]} 0-1

[Event "FIDE WCCC Open-08 2024"]
[Site "Montesilvano"]
[Date "2024.11.23"]
[Round "8.7"]
[White "Ayaan Phutane"]
[Black "Bausys, Benas"]
[Result "1-0"]
[ECO "A59"]
[WhiteElo "1796"]
[BlackElo "1564"]
[Annotator "NA RC"]
[PlyCount "97"]
[EventDate "2024.11.18"]
[EventType "swiss"]
[EventCountry "ITA"]
[SourceTitle "playchess.com"]
[Source "ChessBase"]
[SourceQuality "1"]
[TimeControl "5400+30"]

1. d4 {[%emt 0:00:25]} Nf6 {[%emt 0:00:05]} 2. c4 {[%emt 0:00:08]} c5 {[%emt 0:00:02]} 3. d5 {[%emt 0:00:05]} b5 {[%emt 0:00:02]} 4. cxb5 {[%emt 0:00:19]} a6 {[%emt 0:00:10]} 5. bxa6 {[%emt 0:00:35]} Bxa6 {[%emt 0:00:04]} 6. Nc3 {[%emt 0:00:06]} d6 {[%emt 0:00:19]} 7. e4 {[%emt 0:00:04]} Bxf1 {[%emt 0:00:11]} 8. Kxf1 {[%emt 0:00:07]} g6 {[%emt 0:00:09]} 9. g3 {[%emt 0:00:04]} Bg7 {[%emt 0:00:05]} 10. Kg2 {[%emt 0:00:04]} O-O {[%emt 0:00:07]} 11. Nf3 {[%emt 0:00:03]} Nbd7 {[%emt 0:00:06]} 12. h3 {[%emt 0:00:04]} Qb6 {[%emt 0:00:16]} 13. Re1 {[%emt 0:01:06]} Ne8 {[%emt 0:01:36]} 14. Qc2 {[%emt 0:00:25]} Nc7 {[%emt 0:00:20]} 15. Be3 {[%emt 0:01:45]} Rfb8 {[%emt 0:01:20]} 16. Reb1 {[%emt 0:00:51]} Qb7 {[%emt 0:02:09]} 17. Qd2 {[%emt 0:08:58]} Nb6 {[%emt 0:01:31]} 18. Qd3 {[%emt 0:00:57]} Na4 {[%emt 0:01:09]} 19. Nxa4 {[%emt 0:01:59]} Rxa4 {[%emt 0:01:02]} 20. a3 {[%emt 0:02:58]} Qa8 {[%emt 0:49:42]} 21. Ra2 {[%emt 0:11:56]} Na6 {[%emt 0:00:43]} 22. Bd2 {[%emt 0:03:17]} c4 {[%emt 0:03:05]} 23. Qc2 {[%emt 0:03:57]} Nc5 {[%emt 0:03:00]} 24. Be3 {[%emt 0:06:53]} Qa5 {[%emt 0:03:22]} 25. Bxc5 {[%emt 0:05:05]} dxc5 {[%emt 0:00:24]} 26. Nd2 {[%emt 0:01:18]} Qb5 {[%emt 0:00:53]} 27. b3 {[%emt 0:00:29]} Raa8 {[%emt 0:01:35]} 28. bxc4 {[%emt 0:02:27]} Qa5 {[%emt 0:00:58]} 29. a4 {[%emt 0:04:37]} Bc3 {[%emt 0:01:58]} 30. Rxb8+ {[%emt 0:01:01]} Rxb8 {[%emt 0:00:12]} 31. Nb3 {[%emt 0:00:14]} Qb4 {[%emt 0:00:16]} 32. Nxc5 {[%emt 0:00:13]} Qxc4 {[%emt 0:00:25]} 33. Ra3 {[%emt 0:00:09]} Qxc5 {[%emt 0:01:38]} 34. Rxc3 {[%emt 0:00:07]} Qb4 {[%emt 0:00:26]} 35. Rc4 {[%emt 0:00:06]} Qb7 {[%emt 0:00:36]} 36. a5 {[%emt 0:01:13]} Qa6 {[%emt 0:01:12]} 37. Qa4 {[%emt 0:01:20]} Rb2 {[%emt 0:00:56]} 38. Rb4 {[%emt 0:02:20]} Rd2 {[%emt 0:00:43]} 39. Qb5 {[%emt 0:05:56]} Qf6 {[%emt 0:02:21]} 40. Qb8+ {[%emt 0:00:29]} Kg7 {[%emt 0:00:16]} 41. Qf4 {[%emt 0:00:07]} Qc3 {[%emt 0:00:40]} 42. Rb7 {[%emt 0:01:37]} Kf8 {[%emt 0:02:48]} 43. Qh6+ {[%emt 0:01:27]} Ke8 {[%emt 0:00:25]} 44. Rb8+ {[%emt 0:00:06]} Kd7 {[%emt 0:00:13]} 45. Qf4 {[%emt 0:00:08]} Qxa5 {[%emt 0:00:52]} 46. Qxf7 {[%emt 0:00:21]} Qa6 {[%emt 0:01:27]} 47. e5 {[%emt 0:02:03]} Rd1 {[%emt 0:00:43]} 48. Qe8+ {[%emt 0:00:14]} Kc7 {[%emt 0:00:18]} 49. Qd8# {[%emt 0:00:04]} 1-0

[Event "FIDE WCCC Open-08 2024"]
[Site "Montesilvano"]
[Date "2024.11.23"]
[Round "8.8"]
[White "Nurshin, Nurali"]
[Black "Divith Reddy Adulla"]
[Result "0-1"]
[ECO "B54"]
[WhiteElo "1612"]
[BlackElo "1784"]
[Annotator "NA RC"]
[PlyCount "130"]
[EventDate "2024.11.18"]
[EventType "swiss"]
[EventCountry "ITA"]
[SourceTitle "playchess.com"]
[Source "ChessBase"]
[SourceQuality "1"]
[TimeControl "5400+30"]

1. e4 {[%emt 0:00:11]} c5 {[%emt 0:00:05]} 2. Nf3 {[%emt 0:00:18]} a6 {[%emt 0:00:25]} 3. c4 {[%emt 0:00:55]} d6 {[%emt 0:02:10]} 4. d4 {[%emt 0:01:34]} cxd4 {[%emt 0:02:09]} 5. Nxd4 {[%emt 0:01:17]} Nf6 {[%emt 0:02:22]} 6. Nc3 {[%emt 0:00:47]} g6 {[%emt 0:02:28]} 7. f3 {[%emt 0:02:18]} Bg7 {[%emt 0:01:57]} 8. Be3 {[%emt 0:00:40]} O-O {[%emt 0:02:22]} 9. Be2 {[%emt 0:02:00]} Re8 {[%emt 0:01:53]} 10. O-O {[%emt 0:02:25]} Nc6 {[%emt 0:02:01]} 11. Nd5 {[%emt 0:02:22]} Rb8 {[%emt 0:02:06]} 12. Qd2 {[%emt 0:13:49]} Bd7 {[%emt 0:04:19]} 13. Rac1 {[%emt 0:03:13]} Nxd4 {[%emt 0:05:04]} 14. Bxd4 {[%emt 0:00:51]} Bc6 {[%emt 0:02:52]} 15. Nxf6+ {[%emt 0:07:28]} Bxf6 {[%emt 0:00:16]} 16. Bxf6 {[%emt 0:00:35]} exf6 {[%emt 0:00:08]} 17. Rfd1 {[%emt 0:00:26]} Qb6+ {[%emt 0:02:26]} 18. Qd4 {[%emt 0:00:49]} Qxd4+ {[%emt 0:00:07]} 19. Rxd4 {[%emt 0:00:04]} f5 {[%emt 0:01:31]} 20. Bd3 {[%emt 0:01:08]} fxe4 {[%emt 0:00:56]} 21. fxe4 {[%emt 0:00:08]} Re6 {[%emt 0:00:41]} 22. Rc2 {[%emt 0:01:07]} Rbe8 {[%emt 0:02:02]} 23. h3 {[%emt 0:02:58]} Kg7 {[%emt 0:03:25]} 24. b3 {[%emt 0:01:27]} Kf6 {[%emt 0:02:03]} 25. Rd2 {[%emt 0:02:58]} Ke5 {[%emt 0:02:13]} 26. Bc2 {[%emt 0:00:40]} b6 {[%emt 0:02:55]} 27. Kf2 {[%emt 0:01:58]} Rf6+ {[%emt 0:01:36]} 28. Ke3 {[%emt 0:00:46]} a5 {[%emt 0:01:53]} 29. Bd1 {[%emt 0:01:37]} h5 {[%emt 0:01:37]} 30. g4 {[%emt 0:00:21]} hxg4 {[%emt 0:01:13]} 31. Bxg4 {[%emt 0:00:24]} Rf1 {[%emt 0:01:36]} 32. Rxd6 {[%emt 0:01:50]} Bxe4 {[%emt 0:01:04]} 33. Rxb6 {[%emt 0:03:53]} f5 {[%emt 0:01:06]} 34. Rb5+ {[%emt 0:14:09]} Kf6 {[%emt 0:00:30]} 35. Rd6+ {[%emt 0:00:11]} Kg7 {[%emt 0:00:29]} 36. Be2 {[%emt 0:04:22]} Bf3+ {[%emt 0:00:26]} 37. Kd4 {[%emt 0:01:46]} Rxe2 {[%emt 0:00:38]} 38. c5 {[%emt 0:00:32]} Rd1+ {[%emt 0:00:47]} 39. Kc3 {[%emt 0:01:55]} Rc1+ {[%emt 0:00:09]} 40. Kd4 {[%emt 0:00:30]} Re4+ {[%emt 0:00:08]} 41. Kd3 {[%emt 0:00:41]} Be2+ {[%emt 0:00:17]} 42. Kd2 {[%emt 0:00:05]} Bxb5 {[%emt 0:00:36]} 43. Kxc1 {[%emt 0:00:08]} Re5 {[%emt 0:00:06]} 44. Kb2 {[%emt 0:01:35]} Rxc5 {[%emt 0:00:07]} 45. a4 {[%emt 0:00:11]} Bf1 {[%emt 0:00:17]} 46. b4 {[%emt 0:00:31]} axb4 {[%emt 0:00:09]} 47. Kb3 {[%emt 0:00:04]} Bxh3 {[%emt 0:00:10]} 48. Kxb4 {[%emt 0:00:07]} Rc8 {[%emt 0:00:05]} 49. a5 {[%emt 0:00:13]} Bg2 {[%emt 0:00:09]} 50. a6 {[%emt 0:00:10]} f4 {[%emt 0:00:33]} 51. Kb5 {[%emt 0:00:13]} f3 {[%emt 0:00:08]} 52. Rd2 {[%emt 0:00:06]} Bf1+ {[%emt 0:00:11]} 53. Kb6 {[%emt 0:00:08]} Bxa6 {[%emt 0:00:14]} 54. Kxa6 {[%emt 0:00:21]} Rf8 {[%emt 0:00:06]} 55. Rf2 {[%emt 0:00:06]} g5 {[%emt 0:00:04]} 56. Kb5 {[%emt 0:00:11]} g4 {[%emt 0:00:04]} 57. Kc4 {[%emt 0:00:06]} g3 {[%emt 0:00:04]} 58. Rf1 {[%emt 0:00:18]} f2 {[%emt 0:00:03]} 59. Kd3 {[%emt 0:00:29]} g2 {[%emt 0:00:05]} 60. Ke2 {[%emt 0:00:10]} g1=Q {[%emt 0:00:05]} 61. Rxg1+ {[%emt 0:00:12]} fxg1=Q {[%emt 0:00:13]} 62. Kd3 {[%emt 0:00:07]} Rf3+ {[%emt 0:00:06]} 63. Kc4 {[%emt 0:00:05]} Qd1 {[%emt 0:00:06]} 64. Kc5 {[%emt 0:00:06]} Rc3+ {[%emt 0:00:04]} 65. Kb6 {[%emt 0:00:07]} Qb1+ {[%emt 0:00:05]} 0-1

[Event "FIDE WCCC Open-08 2024"]
[Site "Montesilvano"]
[Date "2024.11.23"]
[Round "8.9"]
[White "Zhu, Daniel"]
[Black "Elemes, Nurmukhamed"]
[Result "0-1"]
[ECO "A47"]
[WhiteElo "2050"]
[BlackElo "1735"]
[Annotator "RC"]
[PlyCount "58"]
[EventDate "2024.11.18"]
[EventType "swiss"]
[EventCountry "ITA"]
[SourceTitle "playchess.com"]
[Source "ChessBase"]
[SourceQuality "1"]
[TimeControl "5400+30"]

1. d4 {[%emt 0:00:04]} Nf6 {[%emt 0:00:08]} 2. Nf3 {[%emt 0:00:06]} e6 {[%emt 0:00:12]} 3. Bf4 {[%emt 0:00:17]} b6 {[%emt 0:00:25]} 4. e3 {[%emt 0:01:58]} Bb7 {[%emt 0:00:15]} 5. Bd3 {[%emt 0:01:21]} Nh5 {[%emt 0:00:46]} 6. Bg5 {[%emt 0:00:55]} Be7 {[%emt 0:00:42]} 7. Bxe7 {[%emt 0:01:33]} Qxe7 {[%emt 0:00:08]} 8. Nbd2 {[%emt 0:00:38]} c5 {[%emt 0:03:24]} 9. c3 {[%emt 0:00:32]} O-O {[%emt 0:01:50]} 10. Qc2 {[%emt 0:01:41]} f5 {[%emt 0:02:19]} 11. h3 {[%emt 0:02:28]} cxd4 {[%emt 0:02:51]} 12. g4 {[%emt 0:03:01]} dxe3 {[%emt 0:02:43]} 13. fxe3 {[%emt 0:01:02]} Ng3 {[%emt 0:00:54]} 14. Rg1 {[%emt 0:02:04]} Ne4 {[%emt 0:01:28]} 15. Nxe4 {[%emt 0:00:30]} fxe4 {[%emt 0:00:06]} 16. Bxe4 {[%emt 0:02:10]} Bxe4 {[%emt 0:00:03]} 17. Qxe4 {[%emt 0:00:12]} d5 {[%emt 0:00:01]} 18. Qd3 {[%emt 0:07:43]} Rxf3 {[%emt 0:00:09]} 19. O-O-O {[%emt 0:01:44]} Qc5 {[%emt 0:02:16]} 20. Rde1 {[%emt 0:02:51]} Nc6 {[%emt 0:00:55]} 21. Kb1 {[%emt 0:01:48]} Raf8 {[%emt 0:00:19]} 22. g5 {[%emt 0:01:47]} Ne5 {[%emt 0:00:35]} 23. Qe2 {[%emt 0:03:06]} Rf2 {[%emt 0:00:22]} 24. Qh5 {[%emt 0:03:35]} Qb5 {[%emt 0:00:09]} 25. Re2 {[%emt 0:05:59]} Rxe2 {[%emt 0:00:07]} 26. Qxe2 {[%emt 0:01:09]} Qxe2 {[%emt 0:00:08]} 27. g6 {[%emt 0:00:32]} Nd3 {[%emt 0:00:10]} 28. gxh7+ {[%emt 0:00:46]} Kh8 {[%emt 0:00:06]} 29. Rg2 {[%emt 0:02:21]} Rf1# {[%emt 0:00:05]} 0-1

[Event "FIDE WCCC Open-08 2024"]
[Site "Montesilvano"]
[Date "2024.11.23"]
[Round "8.10"]
[White "Jia, Zining (Matthew)"]
[Black "Meiyazhagan, Kaviinayan"]
[Result "0-1"]
[ECO "D02"]
[WhiteElo "1550"]
[BlackElo "1707"]
[Annotator "NA RC"]
[PlyCount "120"]
[EventDate "2024.11.18"]
[EventType "swiss"]
[EventCountry "ITA"]
[SourceTitle "playchess.com"]
[Source "ChessBase"]
[SourceQuality "1"]
[TimeControl "5400+30"]

1. Nf3 {[%emt 0:00:02]} d5 {[%emt 0:00:45]} 2. d4 {[%emt 0:00:07]} e6 {[%emt 0:00:40]} 3. Bf4 {[%emt 0:00:08]} Nf6 {[%emt 0:00:14]} 4. e3 {[%emt 0:00:14]} c5 {[%emt 0:00:31]} 5. Nc3 {[%emt 0:00:27]} Be7 {[%emt 0:00:40]} 6. Bd3 {[%emt 0:00:31]} O-O {[%emt 0:04:06]} 7. h3 {[%emt 0:00:20]} b6 {[%emt 0:00:26]} 8. O-O {[%emt 0:00:10]} Nc6 {[%emt 0:01:11]} 9. Re1 {[%emt 0:01:09]} Bb7 {[%emt 0:01:08]} 10. a3 {[%emt 0:01:39]} Rc8 {[%emt 0:00:28]} 11. Bf1 {[%emt 0:04:58]} h6 {[%emt 0:02:54]} 12. Ne2 {[%emt 0:01:47]} Bd6 {[%emt 0:03:00]} 13. Bxd6 {[%emt 0:01:04]} Qxd6 {[%emt 0:00:35]} 14. Ng3 {[%emt 0:00:32]} Ne4 {[%emt 0:05:42]} 15. dxc5 {[%emt 0:02:37]} Qxc5 {[%emt 0:05:45]} 16. Nxe4 {[%emt 0:09:23]} dxe4 {[%emt 0:00:21]} 17. Nd2 {[%emt 0:01:39]} Rfd8 {[%emt 0:00:28]} 18. c3 {[%emt 0:00:55]} Ne5 {[%emt 0:02:24]} 19. Qc2 {[%emt 0:00:22]} Qd5 {[%emt 0:08:34]} 20. Nb3 {[%emt 0:03:06]} Nd3 {[%emt 0:01:20]} 21. Red1 {[%emt 0:00:14]} Qg5 {[%emt 0:01:01]} 22. Nd4 {[%emt 0:04:42]} e5 {[%emt 0:03:29]} 23. Ne2 {[%emt 0:00:37]} f5 {[%emt 0:01:58]} 24. Nc1 {[%emt 0:02:22]} Rd6 {[%emt 0:13:29]} 25. Nxd3 {[%emt 0:02:26]} exd3 {[%emt 0:00:34]} 26. Rxd3 {[%emt 0:00:25]} Rg6 {[%emt 0:03:42]} 27. Qb3+ {[%emt 0:07:06]} Kh7 {[%emt 0:00:14]} 28. e4 {[%emt 0:00:43]} Bxe4 {[%emt 0:03:44]} 29. Rg3 {[%emt 0:00:10]} Qf6 {[%emt 0:00:39]} 30. Rxg6 {[%emt 0:00:21]} Qxg6 {[%emt 0:00:08]} 31. Qa4 {[%emt 0:00:54]} f4 {[%emt 0:00:53]} 32. Re1 {[%emt 0:05:21]} Bc6 {[%emt 0:04:20]} 33. Qd1 {[%emt 0:07:39]} e4 {[%emt 0:03:55]} 34. f3 {[%emt 0:04:21]} Re8 {[%emt 0:02:52]} 35. fxe4 {[%emt 0:01:25]} Rxe4 {[%emt 0:01:51]} 36. Rxe4 {[%emt 0:00:48]} Bxe4 {[%emt 0:01:15]} 37. Qd7 {[%emt 0:09:25]} Bxg2 {[%emt 0:04:38]} 38. Bxg2 {[%emt 0:00:27]} f3 {[%emt 0:00:17]} 39. Qg4 {[%emt 0:00:11]} fxg2 {[%emt 0:00:22]} 40. Qxg6+ {[%emt 0:06:42]} Kxg6 {[%emt 0:00:11]} 41. Kxg2 {[%emt 0:00:04]} Kf5 {[%emt 0:00:36]} 42. Kf3 {[%emt 0:02:39]} g5 {[%emt 0:00:15]} 43. c4 {[%emt 0:00:40]} h5 {[%emt 0:00:23]} 44. b4 {[%emt 0:00:12]} Ke5 {[%emt 0:00:09]} 45. Ke3 {[%emt 0:04:40]} g4 {[%emt 0:00:57]} 46. hxg4 {[%emt 0:17:00]} hxg4 {[%emt 0:00:10]} 47. a4 {[%emt 0:00:30]} g3 {[%emt 0:00:41]} 48. Kf3 {[%emt 0:00:43]} Kd4 {[%emt 0:00:13]} 49. Kxg3 {[%emt 0:00:04]} Kxc4 {[%emt 0:00:08]} 50. a5 {[%emt 0:00:13]} Kxb4 {[%emt 0:00:06]} 51. axb6 {[%emt 0:00:07]} axb6 {[%emt 0:00:06]} 52. Kf2 {[%emt 0:00:04]} Kc3 {[%emt 0:00:06]} 53. Ke1 {[%emt 0:01:17]} b5 {[%emt 0:00:14]} 54. Kd1 {[%emt 0:00:16]} b4 {[%emt 0:00:38]} 55. Kc1 {[%emt 0:01:16]} b3 {[%emt 0:00:08]} 56. Kb1 {[%emt 0:00:10]} b2 {[%emt 0:00:07]} 57. Ka2 {[%emt 0:00:04]} Kc2 {[%emt 0:00:03]} 58. Ka3 {[%emt 0:00:05]} b1=Q {[%emt 0:00:09]} 59. Ka4 {[%emt 0:00:04]} Qb6 {[%emt 0:00:10]} 60. Ka3 {[%emt 0:00:07]} Qa5# {[%emt 0:00:09]} 0-1